bitfinex-derivatives/quotes_BTCF0:USTF0_20241103
["timestamp","ask_amount","ask_price","bid_price","bid_amount"]
[1730625964265,0.10328497,68459.0,68458.0,0.075062]
[1730625964974,0.13906553,68459.0,68458.0,0.075062]
[1730625965371,0.13906552,68459.0,68458.0,0.075062]
[1730625966076,0.10328495,68459.0,68458.0,0.075062]
[1730625967975,0.075061,68459.0,68458.0,0.075062]
[1730625969175,0.11807843,68459.0,68458.0,0.075062]
[1730625971372,0.11807843,68459.0,68458.0,0.002]
[1730625972372,0.04501743,68459.0,68458.0,0.37713593]
[1730625972872,0.11807843,68459.0,68458.0,0.12704531]
[1730625973076,0.11807843,68459.0,68458.0,0.002]
[1730625977374,0.14630272,68459.0,68458.0,0.002]
[1730625977767,0.18208376,68459.0,68458.0,0.002]
[1730625978478,0.54288529,68459.0,68458.0,0.002]
[1730625981478,0.18208529,68459.0,68458.0,0.002]
[1730625982781,0.11807843,68459.0,68458.0,0.2316497]
[1730625987788,0.08151892,68459.0,68458.0,0.23177283]
[1730625989379,0.08151892,68459.0,68458.0,0.1068252]
[1730625990682,0.1455326,68459.0,68458.0,0.002]
[1730625991387,0.5063326,68459.0,68458.0,0.002]
[1730625992291,0.50633261,68459.0,68458.0,0.002]
[1730625994380,0.47054691,68459.0,68458.0,0.002]
[1730625995788,0.60277301,68459.0,68458.0,0.002]
[1730625996182,0.56698691,68459.0,68458.0,0.002]
[1730625996381,0.60277301,68459.0,68458.0,0.002]
[1730625996879,0.56698691,68459.0,68458.0,0.002]
[1730625997086,0.53875892,68459.0,68458.0,0.002]
[1730625997289,0.60277333,68459.0,68458.0,0.002]
[1730625997685,0.53875892,68459.0,68458.0,0.10651536]
[1730626000393,0.53875892,68459.0,68458.0,0.1941397]
[1730626004682,0.97699892,68459.0,68458.0,0.10651536]
[1730626004882,0.97699892,68459.0,68458.0,0.17954723]
[1730626005085,0.97699892,68459.0,68458.0,0.002]
[1730626005993,0.61619892,68459.0,68458.0,0.002]
[1730626006185,1.33779892,68459.0,68458.0,0.002]
[1730626006878,1.33879892,68459.0,68458.0,0.004]
[1730626007189,1.33979892,68459.0,68458.0,0.004]
[1730626008088,1.33979892,68459.0,68458.0,0.06241278]
[1730626008393,1.33979892,68459.0,68458.0,0.004]
[1730626012204,0.61819892,68459.0,68458.0,0.004]
[1730626012392,1.33979892,68459.0,68458.0,0.004]
[1730626012989,1.50110829,68459.0,68458.0,0.00268392]
[1730626014499,0.77950829,68459.0,68458.0,0.00268392]
[1730626014689,1.50110829,68459.0,68458.0,0.00268392]
[1730626015101,0.77950829,68459.0,68458.0,0.00268392]
[1730626015502,1.50110829,68459.0,68458.0,0.00268392]
[1730626015699,1.06286829,68459.0,68458.0,0.00268392]
[1730626019594,0.34126829,68459.0,68458.0,0.00268392]
[1730626019796,1.06286829,68459.0,68458.0,0.00268392]
[1730626020098,0.90155892,68459.0,68458.0,0.00268392]
[1730626022608,0.54075892,68459.0,68458.0,0.00268392]
[1730626023998,0.17995892,68459.0,68458.0,0.00268392]
[1730626024198,0.54075892,68459.0,68458.0,0.00268392]
[1730626027904,0.70206356,68459.0,68443.0,0.0065883]
[1730626028109,0.073072,68449.0,68447.0,0.073074]
[1730626028406,0.2127632,68448.0,68447.0,0.073074]
[1730626029003,0.22181324,68448.0,68447.0,0.073074]
[1730626029808,0.22281324,68448.0,68447.0,0.073074]
[1730626030199,0.33269488,68448.0,68447.0,0.074074]
[1730626031005,0.23637488,68448.0,68447.0,0.074074]
[1730626031208,0.33269488,68448.0,68447.0,0.074074]
[1730626031606,0.37719031,68448.0,68447.0,0.074074]
[1730626031808,0.26830867,68448.0,68447.0,0.074074]
[1730626034715,0.17198867,68448.0,68447.0,0.074074]
[1730626035023,0.26830867,68448.0,68447.0,0.074074]
[1730626035402,0.21588843,68448.0,68447.0,0.074074]
[1730626036805,0.21588843,68448.0,68447.0,0.18048138]
[1730626038609,0.11956843,68448.0,68447.0,0.18048138]
[1730626038804,0.21588843,68448.0,68447.0,0.18048138]
[1730626044216,0.001,68448.0,68447.0,0.61876138]
[1730626044413,0.09632,68453.0,68452.0,0.073069]
[1730626044613,0.169388,68453.0,68452.0,0.17947638]
[1730626045221,0.169388,68453.0,68452.0,0.25255591]
[1730626045408,0.073068,68453.0,68452.0,0.25255591]
[1730626045609,0.074068,68453.0,68452.0,0.25355591]
[1730626046120,0.075068,68453.0,68452.0,0.25455591]
[1730626047216,0.075068,68453.0,68452.0,0.07507953]
[1730626047425,0.075068,68453.0,68452.0,0.002]
[1730626050018,0.23636096,68453.0,68452.0,0.002]
[1730626051021,0.073069,68452.0,68451.0,0.05122551]
[1730626051219,0.23436196,68452.0,68451.0,0.05122551]
[1730626051422,0.33056196,68452.0,68451.0,0.05122551]
[1730626052420,0.33156196,68452.0,68451.0,0.05222551]
[1730626052618,0.33256196,68452.0,68451.0,0.05322551]
[1730626053424,0.33256196,68452.0,68451.0,0.002]
[1730626058116,0.171269,68452.0,68451.0,0.002]
[1730626061437,0.075069,68452.0,68451.0,0.18120612]
[1730626061817,0.075069,68452.0,68451.0,1.76891338]
[1730626062832,0.075069,68452.0,68451.0,0.18120612]
[1730626065020,0.18393913,68452.0,68451.0,0.07507]
[1730626065224,0.2363525,68452.0,68451.0,0.07507]
[1730626066426,0.2363525,68452.0,68451.0,0.05156145]
[1730626069932,0.2363525,68452.0,68451.0,1.55156145]
[1730626071024,0.2363525,68452.0,68451.0,0.05156145]
[1730626073027,0.075069,68452.0,68451.0,0.15788874]
[1730626075129,0.002,68452.0,68451.0,0.15788874]
[1730626075336,0.002,68452.0,68451.0,0.59616874]
[1730626075841,0.002,68452.0,68451.0,0.15788874]
[1730626076038,0.002,68452.0,68451.0,0.59616874]
[1730626076738,0.002,68452.0,68451.0,0.15779817]
[1730626076944,0.002,68452.0,68451.0,0.68378543]
[1730626078641,0.075069,68452.0,68451.0,0.15779817]
[1730626080129,0.1390832,68452.0,68449.0,0.29536749]
[1730626080334,0.16128256,68451.0,68450.0,0.073071]
[1730626080541,0.18863273,68451.0,68450.0,0.073071]
[1730626080946,0.1088695,68451.0,68450.0,0.073071]
[1730626081746,0.1819395,68451.0,68450.0,0.073071]
[1730626082141,0.32776814,68451.0,68450.0,0.073071]
[1730626082342,0.1819395,68451.0,68450.0,0.073071]
[1730626082747,0.1829395,68451.0,68450.0,0.073071]
[1730626083345,0.073076,68448.0,68447.0,0.073074]
[1730626083548,0.1819455,68448.0,68447.0,0.073074]
[1730626084640,0.1829455,68448.0,68447.0,0.073074]
[1730626085450,0.1839455,68448.0,68447.0,0.073074]
[1730626086451,0.23636182,68448.0,68447.0,0.073074]
[1730626088145,0.002,68448.0,68447.0,0.30829618]
[1730626088340,0.075076,68448.0,68447.0,0.30829618]
[1730626089340,0.08336201,68448.0,68447.0,0.20055865]
[1730626089544,0.08336201,68448.0,68447.0,0.3075123]
[1730626094653,0.08336201,68448.0,68447.0,0.073074]
[1730626094856,0.08336201,68448.0,68447.0,0.30693731]
[1730626095650,0.08336201,68448.0,68447.0,0.26743625]
[1730626098754,0.08336201,68448.0,68447.0,0.17976533]
[1730626099762,0.08336201,68448.0,68447.0,0.26743625]
[1730626101866,0.08336201,68448.0,68447.0,0.17976533]
[1730626102572,0.11159245,68448.0,68447.0,0.073074]
[1730626102764,0.19224008,68448.0,68447.0,0.073074]
[1730626103568,0.073081,68444.0,68443.0,0.073078]
[1730626103762,0.18195907,68444.0,68443.0,0.073078]
[1730626104465,0.18196219,68444.0,68443.0,0.073078]
[1730626105263,0.18296219,68444.0,68443.0,0.073078]
[1730626105569,0.26269081,68444.0,68443.0,0.073078]
[1730626105764,0.18396219,68444.0,68443.0,0.074078]
[1730626109963,0.34434075,68444.0,68443.0,0.074078]
[1730626110573,0.16237856,68444.0,68443.0,0.45558317]
[1730626110764,0.23545956,68444.0,68443.0,0.45558317]
[1730626112365,0.23345956,68444.0,68443.0,0.45558317]
[1730626112670,0.23345956,68444.0,68443.0,0.57239572]
[1730626113169,0.23345956,68444.0,68443.0,0.45558317]
[1730626116169,0.073081,68444.0,68443.0,0.45558317]
[1730626117582,0.18196151,68444.0,68443.0,0.074078]
[1730626118464,0.10888051,68444.0,68443.0,0.074078]
[1730626118670,0.10888051,68444.0,68443.0,0.512398]
[1730626118671,0.06402071,68444.0,68443.0,0.512398]
[1730626119173,0.06402071,68444.0,68443.0,2.012398]
[1730626125664,0.073069,68453.0,68452.0,0.073069]
[1730626125868,0.073069,68453.0,68452.0,0.17937453]
[1730626126877,0.074069,68453.0,68452.0,0.18037453]
[1730626127879,0.075069,68453.0,68452.0,0.18136558]
[1730626134384,0.03850833,68453.0,68452.0,0.18136558]
[1730626137280,0.03850833,68453.0,68452.0,0.18104269]
[1730626140883,0.22711688,68453.0,68452.0,0.075069]
[1730626141085,0.31531607,68453.0,68452.0,0.075069]
[1730626141282,0.30775829,68453.0,68452.0,0.075069]
[1730626141585,0.19979115,68453.0,68452.0,0.075069]
[1730626143187,0.19979115,68453.0,68452.0,0.05140371]
[1730626145286,0.30763083,68453.0,68452.0,0.05140371]
[1730626145790,0.36004398,68453.0,68452.0,0.05140371]
[1730626146889,0.19979115,68453.0,68452.0,0.05140371]
[1730626147988,0.03850833,68453.0,68452.0,0.28414053]
[1730626150295,0.03850833,68453.0,68452.0,0.28407638]
[1730626155082,0.03850833,68453.0,68452.0,0.28399753]
[1730626156799,0.03850833,68453.0,68452.0,0.05140371]
[1730626157096,0.07429459,68453.0,68452.0,0.05140371]
[1730626158600,0.19979215,68453.0,68452.0,0.05140371]
[1730626162201,0.19979215,68453.0,68452.0,0.002]
[1730626162696,0.03850833,68453.0,68452.0,0.002]
[1730626163603,0.03850833,68453.0,68452.0,0.10804034]
[1730626170710,0.22709489,68453.0,68452.0,0.002]
[1730626171019,0.30773752,68453.0,68452.0,0.002]
[1730626171621,0.14737965,68453.0,68452.0,0.002]
[1730626172415,0.19979359,68453.0,68452.0,0.002]
[1730626173024,0.19979359,68453.0,68451.0,0.05129928]
[1730626173025,0.073069,68452.0,68451.0,0.05129928]
[1730626173222,0.23435426,68452.0,68451.0,0.05129928]
[1730626174624,0.23535426,68452.0,68451.0,0.05229928]
[1730626174817,0.23635426,68452.0,68451.0,0.05329928]
[1730626177627,0.075069,68452.0,68451.0,0.15941517]
[1730626180619,0.075069,68452.0,68451.0,0.10811589]
[1730626181114,0.435869,68452.0,68451.0,0.18122074]
[1730626181314,0.435869,68452.0,68451.0,0.07510485]
[1730626181524,0.435869,68452.0,68451.0,0.002]
[1730626192727,0.435869,68452.0,68451.0,0.18124044]
[1730626192932,0.59715764,68452.0,68451.0,0.002]
[1730626193832,0.69291764,68452.0,68451.0,0.002]
[1730626194938,0.33211764,68452.0,68451.0,0.002]
[1730626196933,0.33211764,68452.0,68451.0,0.00137596]
[1730626199233,0.23635764,68452.0,68451.0,0.00137596]
[1730626199434,0.33211764,68452.0,68451.0,0.00137596]
[1730626200844,0.170829,68452.0,68451.0,0.18067489]
[1730626201043,0.170829,68452.0,68451.0,0.18067531]
[1730626204242,0.170829,68452.0,68451.0,0.00137596]
[1730626206337,0.170829,68452.0,68451.0,0.001]
[1730626206538,0.170829,68452.0,68451.0,0.07407]
[1730626207042,0.169829,68452.0,68451.0,0.07407]
[1730626207235,0.170829,68452.0,68451.0,0.001]
[1730626207437,0.09776,68452.0,68451.0,0.07305792]
[1730626207852,0.09776,68452.0,68451.0,0.17931901]
[1730626208034,0.075069,68452.0,68451.0,0.17931901]
[1730626208547,0.075069,68452.0,68451.0,0.10626109]
[1730626211743,0.075069,68452.0,68451.0,0.17933109]
[1730626212258,0.04327682,68454.0,68453.0,0.073068]
[1730626212440,0.073066,68455.0,68454.0,0.073067]
[1730626212639,0.073066,68455.0,68454.0,0.17932809]
[1730626214660,0.074066,68455.0,68454.0,0.18032809]
[1730626214854,0.001,68455.0,68454.0,0.18032809]
[1730626215049,0.001,68455.0,68454.0,0.30616677]
[1730626215754,0.002,68455.0,68454.0,0.30716677]
[1730626215952,0.0302254,68455.0,68454.0,0.075067]
[1730626216149,0.19052324,68455.0,68454.0,0.075067]
[1730626216342,0.27115649,68455.0,68454.0,0.075067]
[1730626216554,0.11085865,68455.0,68454.0,0.075067]
[1730626216747,0.14765737,68455.0,68454.0,0.075067]
[1730626216948,0.06600782,68455.0,68454.0,0.513307]
[1730626217142,0.0302254,68455.0,68454.0,0.513307]
[1730626217458,0.11085865,68455.0,68454.0,0.55762432]
[1730626218850,0.1108578,68455.0,68454.0,0.55762432]
[1730626219348,0.06600732,68455.0,68454.0,0.55762432]
[1730626219752,0.0660069,68455.0,68454.0,0.55762432]
[1730626220360,0.002,68455.0,68454.0,0.55762432]
[1730626224854,0.002,68455.0,68454.0,0.075067]
[1730626225156,0.03022232,68455.0,68454.0,0.075067]
[1730626225356,0.11084953,68455.0,68454.0,0.0511934]
[1730626225557,0.16325491,68455.0,68454.0,0.0511934]
[1730626225864,0.11084953,68455.0,68454.0,0.0511934]
[1730626226375,0.16325491,68455.0,68454.0,0.0511934]
[1730626226755,0.11084953,68455.0,68454.0,0.0511934]
[1730626228359,0.11084953,68455.0,68454.0,0.4119934]
[1730626228567,0.17576257,68455.0,68454.0,0.4119934]
[1730626228766,0.25638978,68455.0,68454.0,0.4119934]
[1730626229350,0.25638978,68455.0,68454.0,0.0511934]
[1730626229565,0.11084953,68455.0,68454.0,0.4119934]
[1730626229753,0.17575761,68455.0,68454.0,0.4119934]
[1730626230261,0.25638482,68455.0,68454.0,0.4119934]
[1730626230656,0.11084953,68455.0,68454.0,0.4119934]
[1730626231063,0.17575582,68455.0,68454.0,0.4119934]
[1730626231364,0.1601135,68457.0,68456.0,0.073065]
[1730626231566,0.1601135,68457.0,68456.0,0.30546473]
[1730626232264,0.1601135,68457.0,68456.0,0.40759014]
[1730626232569,0.1601135,68457.0,68456.0,0.55439432]
[1730626232864,0.1611135,68457.0,68456.0,0.55539432]
[1730626233064,0.1621135,68457.0,68456.0,0.55739432]
[1730626233266,0.1621135,68457.0,68456.0,0.45526891]
[1730626233762,0.1621135,68457.0,68456.0,0.55739856]
[1730626234073,0.1621135,68457.0,68456.0,0.45526891]
[1730626235873,0.1621135,68457.0,68456.0,0.55741096]
[1730626236061,0.1621135,68457.0,68456.0,0.41060678]
[1730626237270,0.1621135,68457.0,68456.0,0.55749563]
[1730626237465,0.1621135,68457.0,68456.0,0.47509906]
[1730626238161,0.1621135,68457.0,68456.0,0.37295701]
[1730626238363,0.2351775,68457.0,68456.0,0.37295701]
[1730626240172,0.075064,68457.0,68456.0,0.37295701]
[1730626240469,0.075064,68457.0,68456.0,0.37330517]
[1730626242070,0.11849312,68457.0,68456.0,0.37330517]
[1730626242462,0.075064,68457.0,68456.0,0.37330517]
[1730626244469,0.075064,68457.0,68456.0,0.62261319]
[1730626244671,0.075064,68457.0,68456.0,0.52047114]
[1730626245371,0.13906986,68457.0,68456.0,0.14055728]
[1730626249580,0.06600586,68457.0,68456.0,0.14055728]
[1730626249974,0.06600552,68457.0,68456.0,0.14055728]
[1730626253274,0.0311943,68459.0,68456.0,0.44760689]
[1730626253481,0.0311943,68459.0,68458.0,0.073063]
[1730626253684,0.0311943,68459.0,68458.0,0.45317761]
[1730626254183,0.0311943,68459.0,68458.0,0.57013612]
[1730626254382,0.0311943,68459.0,68458.0,0.45317761]
[1730626254585,0.0321943,68459.0,68458.0,0.45317761]
[1730626254790,0.0331943,68459.0,68458.0,0.45517761]
[1730626255976,0.0321943,68459.0,68458.0,0.45517761]
[1730626256174,0.0321943,68459.0,68458.0,0.45817761]
[1730626256175,0.0331943,68459.0,68458.0,0.45817761]
[1730626257275,0.02683871,68460.0,68458.0,0.45817761]
[1730626257477,0.09989871,68460.0,68459.0,0.38011461]
[1730626258486,0.10089871,68460.0,68459.0,0.38011461]
[1730626259183,0.10189871,68460.0,68459.0,0.38011461]
[1730626259386,0.10189871,68460.0,68459.0,0.37797042]
[1730626259885,0.02783871,68460.0,68459.0,0.3779843]
[1730626260077,0.10189871,68460.0,68459.0,0.3819843]
[1730626260278,0.21075324,68460.0,68459.0,0.004]
[1730626260585,0.21075324,68460.0,68459.0,0.007]
[1730626261080,0.35652508,68460.0,68459.0,0.007]
[1730626263894,0.21075324,68460.0,68459.0,0.007]
[1730626264085,0.35641371,68460.0,68459.0,0.007]
[1730626264289,0.57155324,68460.0,68459.0,0.007]
[1730626264592,0.073069,68452.0,68451.0,0.13930936]
[1730626264801,0.2831974,68452.0,68443.0,1.5]
[1730626264983,0.073077,68444.0,68443.0,1.5]
[1730626265182,0.18193153,68444.0,68443.0,1.5]
[1730626266995,0.18195797,68444.0,68443.0,1.5]
[1730626267392,0.13809794,68444.0,68443.0,1.501]
[1730626268287,0.11086675,68444.0,68443.0,1.501]
[1730626268491,0.002,68444.0,68443.0,1.73348163]
[1730626268900,0.075077,68444.0,68443.0,1.73348163]
[1730626269105,0.11849674,68444.0,68443.0,1.73348163]
[1730626273497,0.11849674,68444.0,68443.0,1.60701182]
[1730626273701,0.11849674,68444.0,68443.0,1.73274379]
[1730626274105,0.11849674,68444.0,68443.0,1.60701182]
[1730626276693,0.07461952,68444.0,68443.0,1.60701182]
[1730626277096,0.07461952,68444.0,68443.0,1.73286373]
[1730626277307,0.07461952,68444.0,68443.0,1.60701182]
[1730626278304,0.07461952,68444.0,68443.0,1.73255739]
[1730626280015,0.07461952,68444.0,68443.0,1.60701182]
[1730626281513,0.07461952,68444.0,68443.0,1.69445749]
[1730626282413,0.07461952,68444.0,68443.0,1.60701182]
[1730626283020,0.07461952,68444.0,68443.0,1.69445749]
[1730626283316,0.07461952,68444.0,68443.0,1.501]
[1730626283919,0.90197328,68444.0,68443.0,0.001]
[1730626284116,0.073096,68427.0,68426.0,0.325]
[1730626284308,0.06449228,68427.0,68417.0,0.15899228]
[1730626284503,0.13759328,68422.0,68421.0,0.433902]
[1730626284908,0.13759328,68422.0,68421.0,1.933902]
[1730626285919,0.13759328,68422.0,68421.0,1.979936]
[1730626287410,0.13859328,68422.0,68421.0,1.978936]
[1730626287714,0.13859328,68422.0,68421.0,1.618136]
[1730626287715,0.075101,68422.0,68421.0,1.618136]
[1730626288119,0.074101,68422.0,68421.0,1.618136]
[1730626288312,0.074101,68422.0,68421.0,1.617136]
[1730626288511,0.075101,68422.0,68421.0,1.618136]
[1730626290522,0.075101,68422.0,68421.0,1.72379632]
[1730626292027,0.002,68422.0,68421.0,1.8497526]
[1730626292912,0.075101,68422.0,68421.0,1.8497526]
[1730626293623,0.075101,68422.0,68421.0,1.8057186]
[1730626295923,0.13959328,68422.0,68421.0,1.73221371]
[1730626296829,0.09570274,68422.0,68421.0,1.73221371]
[1730626297126,0.09570274,68422.0,68421.0,0.23221371]
[1730626297520,0.09570274,68422.0,68421.0,0.23181804]
[1730626298317,0.09570274,68422.0,68421.0,0.10666032]
[1730626298625,0.09570274,68422.0,68421.0,0.001]
[1730626305625,0.00792111,68422.0,68421.0,0.23126895]
[1730626306224,0.08102211,68422.0,68421.0,0.23126895]
[1730626306424,0.073101,68422.0,68421.0,0.23126895]
[1730626306625,0.073101,68422.0,68421.0,0.10605154]
[1730626307330,0.073101,68422.0,68421.0,0.23056639]
[1730626308224,0.073101,68422.0,68421.0,0.22991316]
[1730626313437,0.073101,68422.0,68421.0,0.33224334]
[1730626313735,0.105401,68422.0,68421.0,0.001]
[1730626315338,0.13364293,68422.0,68421.0,0.001]
[1730626315527,0.16364293,68422.0,68421.0,0.001]
[1730626317335,0.16364374,68422.0,68421.0,0.001]
[1730626318836,0.52444374,68422.0,68421.0,0.001]
[1730626319434,0.52444374,68422.0,68421.0,1.501]
[1730626319941,0.61984374,68422.0,68421.0,1.501]
[1730626320436,1.15858112,68422.0,68421.0,0.001]
[1730626320641,1.030041,68422.0,68421.0,0.001]
[1730626321236,0.65609328,68422.0,68421.0,0.001]
[1730626321539,0.591601,68422.0,68421.0,0.04484885]
[1730626321740,1.09453328,68422.0,68421.0,0.04484885]
[1730626321930,1.09453328,68422.0,68421.0,0.001]
[1730626322932,1.030041,68422.0,68421.0,0.001]
[1730626324228,1.031041,68422.0,68421.0,0.003]
[1730626324729,1.031041,68422.0,68421.0,0.002]
[1730626324927,1.032041,68422.0,68421.0,0.004]
[1730626325636,0.593601,68422.0,68421.0,0.004]
[1730626325839,0.593521,68422.0,68421.0,0.004]
[1730626326346,1.031961,68422.0,68421.0,0.004]
[1730626326641,1.09645328,68422.0,68421.0,0.004]
[1730626327332,1.031961,68422.0,68421.0,0.004]
[1730626328035,1.09645328,68422.0,68421.0,0.004]
[1730626328635,1.031961,68422.0,68421.0,0.004]
[1730626331837,0.936641,68422.0,68421.0,0.004]
[1730626332155,0.531221,68422.0,68421.0,0.004]
[1730626332533,0.170421,68422.0,68421.0,0.07708854]
[1730626332738,0.170421,68422.0,68421.0,0.10872162]
[1730626333843,0.170421,68422.0,68421.0,0.18171712]
[1730626334045,0.170421,68422.0,68421.0,0.10872162]
[1730626335739,0.27934134,68422.0,68421.0,0.004]
[1730626335940,0.18402134,68422.0,68421.0,0.004]
[1730626336136,0.33177836,68422.0,68418.0,0.073104]
[1730626336346,0.16135736,68421.0,68420.0,0.06449228]
[1730626336945,0.16135736,68421.0,68420.0,1.56449228]
[1730626337550,0.16135736,68421.0,68420.0,1.63759528]
[1730626337735,0.10892034,68421.0,68420.0,1.63759528]
[1730626338050,0.06504409,68421.0,68420.0,1.63959528]
[1730626338344,0.06504085,68421.0,68420.0,1.63959528]
[1730626338552,0.06504085,68421.0,68420.0,2.07807528]
[1730626338751,0.12953313,68421.0,68420.0,1.94048]
[1730626338947,0.20363513,68421.0,68420.0,1.504]
[1730626339248,0.20363676,68421.0,68420.0,0.004]
[1730626340459,0.24851366,68421.0,68420.0,0.004]
[1730626341653,0.29312658,68421.0,68420.0,0.004]
[1730626342050,0.34556392,68421.0,68420.0,0.004]
[1730626343764,0.1842072,68421.0,68420.0,0.19728987]
[1730626344259,0.2795272,68421.0,68420.0,0.19728987]
[1730626346455,0.2795272,68421.0,68420.0,0.10958362]
[1730626346757,0.2795272,68421.0,68420.0,0.19728987]
[1730626347353,0.2795272,68421.0,68420.0,0.10958362]
[1730626350170,0.2795272,68421.0,68420.0,0.18260431]
[1730626350549,0.2795272,68421.0,68420.0,0.10958362]
[1730626350749,0.38845541,68421.0,68420.0,0.004]
[1730626351765,0.38845541,68421.0,68420.0,0.00271581]
[1730626351952,0.44089675,68421.0,68420.0,0.00271581]
[1730626354259,0.80169675,68421.0,68420.0,0.00271581]
[1730626355056,0.80169675,68421.0,68420.0,0.00184764]
[1730626356261,0.073123,68401.0,68386.0,0.3608]
[1730626356464,0.073123,68401.0,68388.0,0.0339]
[1730626356465,0.73128988,68401.0,68388.0,0.0339]
[1730626356663,0.75505828,68401.0,68390.0,0.073134]
[1730626356849,0.70261237,68401.0,68391.0,0.06449228]
[1730626357557,0.70261237,68401.0,68391.0,0.13762628]
[1730626357558,0.70461237,68401.0,68391.0,0.13762628]
[1730626358156,0.60937237,68401.0,68391.0,0.06449228]
[1730626358355,0.70461237,68401.0,68393.0,0.073131]
[1730626358660,0.70461237,68401.0,68395.0,0.07313]
[1730626358862,0.70461237,68401.0,68400.0,0.36636726]
[1730626358863,0.435923,68401.0,68400.0,0.36636726]
[1730626359054,0.531163,68401.0,68400.0,0.36636726]
[1730626359455,0.531163,68401.0,68400.0,0.3226]
[1730626359763,0.531163,68401.0,68400.0,0.36635579]
[1730626360656,0.531163,68401.0,68400.0,0.3226]
[1730626360862,0.531163,68401.0,68400.0,0.36635579]
[1730626361057,0.170363,68401.0,68400.0,0.3226]
[1730626361652,0.075123,68401.0,68400.0,0.3226]
[1730626365354,0.075123,68401.0,68400.0,0.36631595]
[1730626365659,0.075123,68401.0,68400.0,0.3226]
[1730626365857,0.19032121,68402.0,68400.0,0.4286939]
[1730626366056,0.19032121,68402.0,68401.0,0.1060939]
[1730626366852,0.26344321,68402.0,68401.0,0.1060939]
[1730626367055,0.26444321,68402.0,68401.0,0.17894901]
[1730626367257,0.26544321,68402.0,68401.0,0.17894901]
[1730626368959,0.26544321,68402.0,68401.0,0.1060939]
[1730626369157,0.22216461,68402.0,68401.0,0.1060939]
[1730626369563,0.170362,68402.0,68401.0,0.1060939]
[1730626370162,0.170362,68402.0,68401.0,0.10532419]
[1730626370163,0.1264568,68402.0,68401.0,0.10532419]
[1730626370463,0.075122,68402.0,68401.0,0.17844719]
[1730626370671,0.002,68402.0,68401.0,0.17844719]
[1730626370967,0.073121,68406.0,68405.0,0.073119]
[1730626371166,0.073121,68406.0,68405.0,0.17844319]
[1730626372764,0.074121,68406.0,68405.0,0.17844319]
[1730626373171,0.074121,68406.0,68405.0,0.10532419]
[1730626373470,0.075121,68406.0,68405.0,0.10532419]
[1730626373963,0.073121,68403.0,68402.0,0.073122]
[1730626374273,0.10136933,68403.0,68402.0,0.073122]
[1730626375063,0.10136933,68403.0,68402.0,0.074122]
[1730626375064,0.10236933,68403.0,68402.0,0.074122]
[1730626376563,0.10336933,68403.0,68402.0,0.074122]
[1730626377165,0.10336933,68403.0,68402.0,0.001]
[1730626377372,0.2036738,68403.0,68402.0,0.001]
[1730626379058,0.20367978,68403.0,68402.0,0.001]
[1730626380873,0.13961328,68403.0,68402.0,0.07389767]
[1730626381775,0.13961328,68403.0,68402.0,0.1793567]
[1730626382363,0.13961328,68403.0,68402.0,0.17935286]
[1730626382567,0.13961328,68403.0,68402.0,0.10645519]
[1730626382970,0.18422565,68403.0,68402.0,0.10645519]
[1730626384684,0.18422565,68403.0,68402.0,0.19389445]
[1730626385669,0.18422565,68403.0,68402.0,0.10645519]
[1730626388681,0.18422565,68403.0,68402.0,0.19415247]
[1730626388888,0.34349208,68403.0,68402.0,0.001]
[1730626390272,0.84658436,68403.0,68402.0,0.001]
[1730626390782,0.89147878,68403.0,68402.0,0.001]
[1730626391274,0.45288532,68403.0,68402.0,0.001]
[1730626391973,0.40798969,68403.0,68402.0,0.001]
[1730626393270,0.40798969,68403.0,68400.0,0.3226]
[1730626393271,0.073123,68401.0,68400.0,0.3226]
[1730626393478,0.13719476,68401.0,68400.0,0.3226]
[1730626393667,0.49799476,68401.0,68400.0,0.3226]
[1730626394478,0.49899476,68401.0,68400.0,0.3226]
[1730626394673,0.49999476,68401.0,68400.0,0.3226]
[1730626395776,0.49999526,68401.0,68400.0,0.3226]
[1730626395969,0.435923,68401.0,68400.0,0.3226]
[1730626396868,0.531123,68401.0,68400.0,0.3226]
[1730626398076,0.170323,68401.0,68400.0,0.3226]
[1730626398281,0.891923,68401.0,68400.0,0.3226]
[1730626399875,0.796723,68401.0,68400.0,0.3226]
[1730626400074,0.796723,68401.0,68400.0,0.38106504]
[1730626400374,0.075123,68401.0,68400.0,0.5008326]
[1730626400684,0.170323,68401.0,68400.0,0.42775129]
[1730626401377,0.170323,68401.0,68400.0,0.50087529]
[1730626401981,0.170323,68401.0,68400.0,0.42775129]
[1730626403285,0.170323,68401.0,68400.0,0.50087529]
[1730626403286,0.075123,68401.0,68400.0,0.50087529]
[1730626404076,0.103373,68401.0,68400.0,0.3226]
[1730626404687,0.16786528,68401.0,68400.0,0.3226]
[1730626404979,0.13918877,68401.0,68400.0,0.3226]
[1730626405185,0.20368105,68401.0,68400.0,0.3226]
[1730626405780,0.28246374,68401.0,68400.0,0.3226]
[1730626407082,0.64326374,68401.0,68400.0,0.3226]
[1730626407889,0.28246374,68401.0,68400.0,0.3226]
[1730626408280,0.64326374,68401.0,68400.0,0.3226]
[1730626409194,0.59836935,68401.0,68400.0,0.3226]
[1730626409375,0.64326411,68401.0,68400.0,0.3226]
[1730626410089,0.64226411,68401.0,68400.0,0.3226]
[1730626410395,0.64326411,68401.0,68400.0,0.3226]
[1730626410975,0.53430358,68401.0,68400.0,0.4280446]
[1730626411176,0.53430358,68401.0,68400.0,0.50112681]
[1730626412083,0.49770975,68401.0,68400.0,0.50112424]
[1730626412287,0.49770975,68401.0,68400.0,0.4280446]
[1730626412594,0.49770975,68401.0,68400.0,0.50112279]
[1730626413695,0.59290975,68401.0,68400.0,0.50112279]
[1730626413883,0.59290975,68401.0,68400.0,0.50087347]
[1730626414990,0.95370975,68401.0,68400.0,0.50087347]
[1730626415185,0.95370975,68401.0,68400.0,0.50085737]
[1730626415381,0.95370975,68401.0,68400.0,0.39567819]
[1730626415585,0.95370975,68401.0,68400.0,0.3226]
[1730626416393,0.95370975,68401.0,68386.0,0.00219352]
[1730626416394,0.073132,68393.0,68392.0,0.08769757]
[1730626416581,0.53231258,68393.0,68392.0,0.19300438]
[1730626417499,0.53331258,68393.0,68392.0,0.19300438]
[1730626417888,0.53431258,68393.0,68392.0,0.19300438]
[1730626418481,0.53431258,68393.0,68392.0,0.10530681]
[1730626419091,0.073133,68392.0,68389.0,0.05846197]
[1730626419294,0.073135,68390.0,68389.0,0.05846197]